Workbook

Sheet Louver_Calculator
AV3: Project:
AV4: Engineered by:
B5: LOUVER PERFORMANCE | AV5: Date / Time:
B6: Holyoake Louver Calculator | AV6: Comments:
B7: Version 8.3 NZ | BC7: Insertion Loss (dB) | BJ7: Transmission Loss (dB)
B8: Louver Number | C8: Reference | D8: Louver Model | E8: Volume (L/S) | F8: Volume (M3S) | G8: Width (mm) | H8: Height (mm) | I8: Exhaust or Intake (E / I) | J8: Insect Mesh (Y / N) | K8: Overall Width | L8: Overall Height | M8: Internal Width | N8: Internal Width OHL-100WT | O8: Internal Height | P8: Internal Height OHL-100WT | Q8: Number of Blades Horizontal | R8: Number of Blades Vertical | S8: Number of Blades OHL-100WT | T8: Number of Mullions Horizontal | U8: Number of Mullions Vertical | V8: Number of Mullions OHL-100WT | W8: Number of Mullions Clips | X8: Mullions Clips Front OHL-100WT | Y8: Free Width Horizontal | Z8: Free Height Horizontal | AA8: Remaining Height Horizontal | AB8: Free Width Vertical | AC8: Free Height Vertical | AD8: Remaining Width Vertical | AE8: Free Width Horizontal | AF8: Free Height Horizontal | AG8: Free Width Vertical | AH8: Free Height Vertical | AI8: Free Width | AJ8: Free Height | AK8: Blade Weight Horizontal | AL8: Blade Weight Vertical | AM8: Mullion Weight Horizontal | AN8: Mullion Weight Vertical | AO8: Frame Weight | AP8: Single Door Weight | AQ8: Double Door Weight | AR8: Mesh Weight | AS8: Supplementary Weight | AT8: Effective Pressure Area | AU8: Free Area (%) | AV8: Face Velocity (m/s) | AW8: Free Area Velocity (m/s) | AX8: Pressure Drop (Pa) | AY8: Discharge Coefficient (CDv)* | AZ8: Estimated Weight (Kg)** | BA8: Wind Loading | BB8: Water Penetration Efficiency | BC8: 125 Hz | BD8: 250 Hz | BE8: 500 Hz | BF8: 1k Hz | BG8: 2k Hz | BH8: 4k Hz | BI8: 8k Hz | BJ8: 125 Hz | BK8: 250 Hz | BL8: 500 Hz | BM8: 1k Hz | BN8: 2k Hz | BO8: 4k Hz | BP8: 8k Hz | BQ8: Notes
B10: 1 | F10: =IF($E10=0,"",$E10/1000) ->  | K10: =IF(OR($D10="",$G10=0,$H10=0),0,$G10-6) -> 0 | L10: =IF(OR($D10="",$G10=0,$H10=0),0,$H10-6) -> 0 | M10: =IF(OR($D10="",$G10=0,$H10=0),0,($K10-VLOOKUP($D10,LouverData,12,FALSE))) -> 0 | N10: =IF(OR($D10="",$G10=0,$H10=0),0,IF($D10="OHL-100WT",($K10-VLOOKUP("OHL-102",LouverData,12,FALSE)),0)) -> 0 | O10: =IF(OR($D10="",$G10=0,$H10=0),0,($L10-VLOOKUP($D10,LouverData,13,FALSE))) -> 0 | P10: =IF(OR($D10="",$G10=0,$H10=0),0,IF($D10="OHL-100WT",($L10-VLOOKUP("OHL-102",LouverData,13,FALSE)),0)) -> 0 | Q10: =IF(OR($D10="",$G10=0,$H10=0),0,IF(VLOOKUP($D10,LouverData,19,FALSE)=0,0,(IF(AND(NOT($D10="OVL-99"),NOT($D10="OHL-100WT")),(ROUNDUP($O10/VLOOKUP($D10,LouverData,19,FALSE),0)+1),0)))) -> 0 | R10: =IF(OR($D10="",$G10=0,$H10=0),0,IF(OR($D10="OVL-99",$D10="OHL-100WT"),(ROUNDUP($M10/VLOOKUP($D10,LouverData,19,FALSE),0)+1),0)) -> 0 | S10: =IF(OR($D10="",$G10=0,$H10=0),0,IF($D10="OHL-100WT",(ROUNDUP(P10/VLOOKUP("OHL-102",LouverData,19,FALSE),0)+1),0)) -> 0 | T10: =IF(OR($D10="",$G10=0,$H10=0),0,IF(VLOOKUP($D10,LouverData,22,FALSE)=0,0,(IF(AND(NOT($D10="OVL-99"),NOT($D10="OHL-100WT")),(IF($K10>500,ROUNDDOWN((($K10-100)/VLOOKUP($D10,LouverData,22,FALSE))+IF($D10="OHL-D",0,2),0),0)),0)))) -> 0 | U10: =IF(OR($D10="",$G10=0,$H10=0),0,IF(OR($D10="OVL-99",$D10="OHL-100WT"),(IF($L10>500,ROUNDDOWN((($L10-100)/VLOOKUP($D10,LouverData,22,FALSE))+2,0),0)),0)) -> 0 | V10: =IF(OR($D10="",$G10=0,$H10=0),0,IF($D10="OHL-100WT",(IF($K10>500,ROUNDDOWN((($K10-100)/VLOOKUP("OHL-102",LouverData,22,FALSE))+2,0),0)),0)) -> 0 | W10: =IF(OR($D10="",$G10=0,$H10=0),0,((IF($D10="OHL-D",2,0)+$T10)*$Q10)+($R10*$U10)) -> 0 | X10: =IF(OR($D10="",$G10=0,$H10=0),0,($S10*$V10)) -> 0 | Y10: =IF(OR($D10="",$G10=0,$H10=0),0,(IF(AND(NOT($D10="OVL-99"),NOT($D10="OHL-100WT")),($M10-$T10*VLOOKUP($D10,LouverData,23,FALSE)),0))) -> 0 | Z10: =IF(OR($D10="",$G10=0,$H10=0),0,(IF(AND(NOT($D10="OVL-99"),NOT($D10="OHL-100WT")),(($Q10-2)*VLOOKUP($D10,LouverData,20,FALSE)),0))) -> 0 | AA10: =IF(OR($D10="",$G10=0,$H10=0,$Z10=0),0,($O10/VLOOKUP($D10,LouverData,19,FALSE))-($Z10/VLOOKUP($D10,LouverData,20,FALSE))) -> 0 | AB10: =IF(OR($D10="",$G10=0,$H10=0),0,(IF(OR($D10="OVL-99",$D10="OHL-100WT"),(($R10-2)*VLOOKUP($D10,LouverData,20,FALSE)),0))) -> 0 | AC10: =IF(OR($D10="",$G10=0,$H10=0),0,(IF(OR($D10="OVL-99",$D10="OHL-100WT"),($O10-$U10*VLOOKUP($D10,LouverData,23,FALSE)),0))) -> 0 | AD10: =IF(OR($D10="",$G10=0,$H10=0,$AB10=0),0,($M10/VLOOKUP($D10,LouverData,19,FALSE))-($AB10/VLOOKUP($D10,LouverData,20,FALSE))) -> 0 | AE10: =$Y10 -> 0 | AF10: =IF(OR($D10="",$G10=0,$H10=0),0,(IF(($AA10*VLOOKUP($D10,LouverData,19,FALSE))>=VLOOKUP($D10,LouverData,20,FALSE),$Z10+VLOOKUP($D10,LouverData,20,FALSE),$Z10+$AA10*VLOOKUP($D10,LouverData,19,FALSE)))) -> 0 | AG10: =IF(OR($D10="",$G10=0,$H10=0),0,(IF(($AD10*VLOOKUP($D10,LouverData,19,FALSE))>=VLOOKUP($D10,LouverData,20,FALSE),$AB10+VLOOKUP($D10,LouverData,20,FALSE),$AB10+$AD10*VLOOKUP($D10,LouverData,19,FALSE)))) -> 0 | AH10: =$AC10 -> 0 | AI10: =IF(OR($D10="",$G10=0,$H10=0),0,(IF($AE10=0,$AG10,$AE10))) -> 0 | AJ10: =IF(OR($D10="",$G10=0,$H10=0),0,(IF($AF10=0,$AH10,$AF10))) -> 0 | AK10: =IF(OR($D10="",$G10=0,$H10=0),0,($M10*$Q10*VLOOKUP($D10,LouverData,18,FALSE))+($M10*$S10*VLOOKUP("OHL-102",LouverData,18,FALSE))) -> 0 | AL10: =IF(OR($D10="",$G10=0,$H10=0),0,($O10*$R10*VLOOKUP($D10,LouverData,18,FALSE))) -> 0 | AM10: =IF(OR($D10="",$G10=0,$H10=0),0,(($O10*$T10*VLOOKUP($D10,LouverData,21,FALSE))+($P10*$V10*VLOOKUP("OHL-45",LouverData,21,FALSE))+$W10*VLOOKUP($D10,LouverData,24,FALSE)+$X10*VLOOKUP("OHL-102",LouverData,24,FALSE))) -> 0 | AN10: =IF(OR($D10="",$G10=0,$H10=0),0,($M10*$U10*VLOOKUP($D10,LouverData,21,FALSE))) -> 0 | AO10: =IF(OR($D10="",$G10=0,$H10=0),0,IF(VLOOKUP($D10,LouverData,19,FALSE)=0,0,($M10*(VLOOKUP($D10,LouverData,15,FALSE)+VLOOKUP($D10,LouverData,16,FALSE))+2*$L10*VLOOKUP($D10,LouverData,17,FALSE)))) -> 0 | AP10: =IF(OR($D10="",$G10=0,$H10=0),0,IF($D10="OHL-DR SINGLE",2*($L10*VLOOKUP($D10,LouverData,15,FALSE) + $M10*VLOOKUP($D10,LouverData,17,FALSE))+2*($O10*VLOOKUP($D10,LouverData,16,FALSE) + ($M10-VLOOKUP($D10,LouverData,14,FALSE))*VLOOKUP($D10,LouverData,15,FALSE)),0)) -> 0 | AQ10: =IF(OR($D10="",$G10=0,$H10=0),0,IF($D10="OHL-DR DOUBLE",2*($L10*VLOOKUP($D10,LouverData,15,FALSE) + $M10*VLOOKUP($D10,LouverData,17,FALSE))+4*($O10*VLOOKUP($D10,LouverData,16,FALSE) + ($M10-2*VLOOKUP($D10,LouverData,14,FALSE))*VLOOKUP($D10,LouverData,15,FALSE)),0)) -> 0 | AR10: =IF(OR($D10="",$G10=0,$H10=0),0,(($M10*$O10*VLOOKUP($D10,LouverData,25,FALSE))/1000000)) -> 0 | AS10: =IF(OR($D10="",$G10=0,$H10=0),0,(VLOOKUP($D10,LouverData,26,FALSE))) -> 0 | AT10: =IF(OR($D10="",$G10=0,$H10=0),"",IF(VLOOKUP($D10,LouverData,20,FALSE)=0,"N/A",$AI10/1000*$AJ10/1000)) ->  | AU10: =IF(OR($D10="",$G10=0,$H10=0),"",IF(VLOOKUP($D10,LouverData,20,FALSE)=0,"N/A",($AI10*$AJ10)/($G10*$H10))) ->  | AV10: =IF(OR($D10="",$F10="",$G10=0,$H10=0),"",IF(VLOOKUP($D10,LouverData,20,FALSE)=0,"N/A",$F10/($G10*$H10/1000000))) ->  | AW10: =IF(OR($D10="",$F10="",$G10=0,$H10=0),"",IF(VLOOKUP($D10,LouverData,20,FALSE)=0,"N/A",$F10/($AI10*$AJ10/1000000))) ->  | AX10: =IF(OR($D10="",$F10="",$G10=0,$H10=0,$I10=0),"",IF(VLOOKUP($D10,LouverData,27,FALSE)=0,"N/A",IF($I10="E",$AW10^2*(VLOOKUP($D10,LouverData,27,FALSE))+$AW10*(VLOOKUP($D10,LouverData,28,FALSE))+(VLOOKUP($D10,LouverData,29,FALSE)),$AW10^2*(VLOOKUP($D10,LouverData,30,FALSE))+$AW10*(VLOOKUP($D10,LouverData,31,FALSE))+(VLOOKUP($D10,LouverData,32,FALSE))))) ->  | AY10: =IF(OR($D10="",$F10="",$G10=0,$H10=0,$I10=0),"",IF(VLOOKUP($D10,LouverData,27,FALSE)=0,"N/A",$AV10*(SQRT(1.19/(2*$AX10))))) ->  | AZ10: =IF(OR($D10="",$G10=0,$H10=0),"",$AK10+$AL10+$AM10+$AN10+$AO10+$AP10+$AQ10+$AR10+$AS10) ->  | BA10: =IF($D10="","",VLOOKUP($D10,LouverData,6,FALSE)) ->  | BB10: =IF($D10="","",VLOOKUP($D10,LouverData,10,FALSE)) ->  | BC10: =IF($D10="","",VLOOKUP($D10,LouverData,33,FALSE)) ->  | BD10: =IF($D10="","",VLOOKUP($D10,LouverData,34,FALSE)) ->  | BE10: =IF($D10="","",VLOOKUP($D10,LouverData,35,FALSE)) ->  | BF10: =IF($D10="","",VLOOKUP($D10,LouverData,36,FALSE)) ->  | BG10: =IF($D10="","",VLOOKUP($D10,LouverData,37,FALSE)) ->  | BH10: =IF($D10="","",VLOOKUP($D10,LouverData,38,FALSE)) ->  | BI10: =IF($D10="","",VLOOKUP($D10,LouverData,39,FALSE)) ->  | BJ10: =IF($D10="","",VLOOKUP($D10,LouverData,40,FALSE)) ->  | BK10: =IF($D10="","",VLOOKUP($D10,LouverData,41,FALSE)) ->  | BL10: =IF($D10="","",VLOOKUP($D10,LouverData,42,FALSE)) ->  | BM10: =IF($D10="","",VLOOKUP($D10,LouverData,43,FALSE)) ->  | BN10: =IF($D10="","",VLOOKUP($D10,LouverData,44,FALSE)) ->  | BO10: =IF($D10="","",VLOOKUP($D10,LouverData,45,FALSE)) ->  | BP10: =IF($D10="","",VLOOKUP($D10,LouverData,46,FALSE)) -> 
B11: 2 | K11: 0 | L11: 0 | M11: 0 | N11: 0 | O11: 0 | P11: 0 | Q11: 0 | R11: 0 | S11: 0 | T11: 0 | U11: 0 | V11: 0 | W11: 0 | X11: 0 | Y11: 0 | Z11: 0 | AA11: 0 | AB11: 0 | AC11: 0 | AD11: 0 | AE11: 0 | AF11: 0 | AG11: 0 | AH11: 0 | AI11: 0 | AJ11: 0 | AK11: 0 | AL11: 0 | AM11: 0 | AN11: 0 | AO11: 0 | AP11: 0 | AQ11: 0 | AR11: 0 | AS11: 0 | BB11: =IF($D11="","",VLOOKUP($D11,LouverData,10,FALSE)) -> 
B12: 3 | F12: =IF($E12=0,"",$E12/1000) ->  | K12: =IF(OR($D12="",$G12=0,$H12=0),0,$G12-6) -> 0 | L12: =IF(OR($D12="",$G12=0,$H12=0),0,$H12-6) -> 0 | M12: 0 | N12: 0 | O12: 0 | P12: 0 | Q12: 0 | R12: 0 | S12: 0 | T12: 0 | U12: 0 | V12: 0 | W12: =IF(OR($D12="",$G12=0,$H12=0),0,((IF($D12="OHL-D",2,0)+$T12)*$Q12)+($R12*$U12)) -> 0 | X12: =IF(OR($D12="",$G12=0,$H12=0),0,($S12*$V12)) -> 0 | Y12: 0 | Z12: 0 | AA12: 0 | AB12: 0 | AC12: 0 | AD12: 0 | AE12: =$Y12 -> 0 | AF12: 0 | AG12: 0 | AH12: =$AC12 -> 0 | AI12: =IF(OR($D12="",$G12=0,$H12=0),0,(IF($AE12=0,$AG12,$AE12))) -> 0 | AJ12: =IF(OR($D12="",$G12=0,$H12=0),0,(IF($AF12=0,$AH12,$AF12))) -> 0 | AK12: 0 | AL12: 0 | AM12: 0 | AN12: 0 | AO12: 0 | AP12: 0 | AQ12: 0 | AR12: 0 | AS12: 0 | AZ12: =IF(OR($D12="",$G12=0,$H12=0),"",$AK12+$AL12+$AM12+$AN12+$AO12+$AP12+$AQ12+$AR12+$AS12) -> 
B13: 4 | F13: =IF($E13=0,"",$E13/1000) ->  | K13: =IF(OR($D13="",$G13=0,$H13=0),0,$G13-6) -> 0 | L13: =IF(OR($D13="",$G13=0,$H13=0),0,$H13-6) -> 0 | M13: 0 | N13: 0 | O13: 0 | P13: 0 | Q13: 0 | R13: 0 | S13: 0 | T13: 0 | U13: 0 | V13: 0 | W13: =IF(OR($D13="",$G13=0,$H13=0),0,((IF($D13="OHL-D",2,0)+$T13)*$Q13)+($R13*$U13)) -> 0 | X13: =IF(OR($D13="",$G13=0,$H13=0),0,($S13*$V13)) -> 0 | Y13: 0 | Z13: 0 | AA13: 0 | AB13: 0 | AC13: 0 | AD13: 0 | AE13: =$Y13 -> 0 | AF13: 0 | AG13: 0 | AH13: =$AC13 -> 0 | AI13: =IF(OR($D13="",$G13=0,$H13=0),0,(IF($AE13=0,$AG13,$AE13))) -> 0 | AJ13: =IF(OR($D13="",$G13=0,$H13=0),0,(IF($AF13=0,$AH13,$AF13))) -> 0 | AK13: 0 | AL13: 0 | AM13: 0 | AN13: 0 | AO13: 0 | AP13: 0 | AQ13: 0 | AR13: 0 | AS13: 0 | AZ13: =IF(OR($D13="",$G13=0,$H13=0),"",$AK13+$AL13+$AM13+$AN13+$AO13+$AP13+$AQ13+$AR13+$AS13) -> 
B14: 5 | K14: 0 | L14: 0 | M14: 0 | N14: 0 | O14: 0 | P14: 0 | Q14: 0 | R14: 0 | S14: 0 | T14: 0 | U14: 0 | V14: 0 | W14: 0 | X14: 0 | Y14: 0 | Z14: 0 | AA14: 0 | AB14: 0 | AC14: 0 | AD14: 0 | AE14: 0 | AF14: 0 | AG14: 0 | AH14: 0 | AI14: 0 | AJ14: 0 | AK14: 0 | AL14: 0 | AM14: 0 | AN14: 0 | AO14: 0 | AP14: 0 | AQ14: 0 | AR14: 0 | AS14: 0
B15: 6 | K15: 0 | L15: 0 | M15: 0 | N15: 0 | O15: 0 | P15: 0 | Q15: 0 | R15: 0 | S15: 0 | T15: 0 | U15: 0 | V15: 0 | W15: 0 | X15: 0 | Y15: 0 | Z15: 0 | AA15: 0 | AB15: 0 | AC15: 0 | AD15: 0 | AE15: 0 | AF15: 0 | AG15: 0 | AH15: 0 | AI15: 0 | AJ15: 0 | AK15: 0 | AL15: 0 | AM15: 0 | AN15: 0 | AO15: 0 | AP15: 0 | AQ15: 0 | AR15: 0 | AS15: 0
B16: 7 | K16: 0 | L16: 0 | M16: 0 | N16: 0 | O16: 0 | P16: 0 | Q16: 0 | R16: 0 | S16: 0 | T16: 0 | U16: 0 | V16: 0 | W16: 0 | X16: 0 | Y16: 0 | Z16: 0 | AA16: 0 | AB16: 0 | AC16: 0 | AD16: 0 | AE16: 0 | AF16: 0 | AG16: 0 | AH16: 0 | AI16: 0 | AJ16: 0 | AK16: 0 | AL16: 0 | AM16: 0 | AN16: 0 | AO16: 0 | AP16: 0 | AQ16: 0 | AR16: 0 | AS16: 0
B17: 8 | F17: =IF($E17=0,"",$E17/1000) ->  | K17: 0 | L17: 0 | M17: 0 | N17: 0 | O17: 0 | P17: 0 | Q17: 0 | R17: 0 | S17: 0 | T17: 0 | U17: 0 | V17: 0 | W17: 0 | X17: 0 | Y17: 0 | Z17: 0 | AA17: 0 | AB17: 0 | AC17: 0 | AD17: 0 | AE17: 0 | AF17: 0 | AG17: 0 | AH17: 0 | AI17: 0 | AJ17: 0 | AK17: 0 | AL17: 0 | AM17: 0 | AN17: 0 | AO17: 0 | AP17: 0 | AQ17: 0 | AR17: 0 | AS17: 0
B18: 9 | K18: 0 | L18: 0 | M18: 0 | N18: 0 | O18: 0 | P18: 0 | Q18: 0 | R18: 0 | S18: 0 | T18: 0 | U18: 0 | V18: 0 | W18: 0 | X18: 0 | Y18: 0 | Z18: 0 | AA18: 0 | AB18: 0 | AC18: 0 | AD18: 0 | AE18: 0 | AF18: 0 | AG18: 0 | AH18: 0 | AI18: 0 | AJ18: 0 | AK18: 0 | AL18: 0 | AM18: 0 | AN18: 0 | AO18: 0 | AP18: 0 | AQ18: 0 | AR18: 0 | AS18: 0
B19: 10 | K19: 0 | L19: 0 | M19: 0 | N19: 0 | O19: 0 | P19: 0 | Q19: 0 | R19: 0 | S19: 0 | T19: 0 | U19: 0 | V19: 0 | W19: 0 | X19: 0 | Y19: 0 | Z19: 0 | AA19: 0 | AB19: 0 | AC19: 0 | AD19: 0 | AE19: 0 | AF19: 0 | AG19: 0 | AH19: 0 | AI19: 0 | AJ19: 0 | AK19: 0 | AL19: 0 | AM19: 0 | AN19: 0 | AO19: 0 | AP19: 0 | AQ19: 0 | AR19: 0 | AS19: 0
B20: 11 | K20: 0 | L20: 0 | M20: 0 | N20: 0 | O20: 0 | P20: 0 | Q20: 0 | R20: 0 | S20: 0 | T20: 0 | U20: 0 | V20: 0 | W20: 0 | X20: 0 | Y20: 0 | Z20: 0 | AA20: 0 | AB20: 0 | AC20: 0 | AD20: 0 | AE20: 0 | AF20: 0 | AG20: 0 | AH20: 0 | AI20: 0 | AJ20: 0 | AK20: 0 | AL20: 0 | AM20: 0 | AN20: 0 | AO20: 0 | AP20: 0 | AQ20: 0 | AR20: 0 | AS20: 0
B21: 12 | K21: 0 | L21: 0 | M21: 0 | N21: 0 | O21: 0 | P21: 0 | Q21: 0 | R21: 0 | S21: 0 | T21: 0 | U21: 0 | V21: 0 | W21: 0 | X21: 0 | Y21: 0 | Z21: 0 | AA21: 0 | AB21: 0 | AC21: 0 | AD21: 0 | AE21: 0 | AF21: 0 | AG21: 0 | AH21: 0 | AI21: 0 | AJ21: 0 | AK21: 0 | AL21: 0 | AM21: 0 | AN21: 0 | AO21: 0 | AP21: 0 | AQ21: 0 | AR21: 0 | AS21: 0
B22: 13 | K22: 0 | L22: 0 | M22: 0 | N22: 0 | O22: 0 | P22: 0 | Q22: 0 | R22: 0 | S22: 0 | T22: 0 | U22: 0 | V22: 0 | W22: 0 | X22: 0 | Y22: 0 | Z22: 0 | AA22: 0 | AB22: 0 | AC22: 0 | AD22: 0 | AE22: 0 | AF22: 0 | AG22: 0 | AH22: 0 | AI22: 0 | AJ22: 0 | AK22: 0 | AL22: 0 | AM22: 0 | AN22: 0 | AO22: 0 | AP22: 0 | AQ22: 0 | AR22: 0 | AS22: 0
B23: 14 | K23: 0 | L23: 0 | M23: 0 | N23: 0 | O23: 0 | P23: 0 | Q23: 0 | R23: 0 | S23: 0 | T23: 0 | U23: 0 | V23: 0 | W23: 0 | X23: 0 | Y23: 0 | Z23: 0 | AA23: 0 | AB23: 0 | AC23: 0 | AD23: 0 | AE23: 0 | AF23: 0 | AG23: 0 | AH23: 0 | AI23: 0 | AJ23: 0 | AK23: 0 | AL23: 0 | AM23: 0 | AN23: 0 | AO23: 0 | AP23: 0 | AQ23: 0 | AR23: 0 | AS23: 0
B24: 15 | F24: =IF($E24=0,"",$E24/1000) ->  | K24: 0 | L24: 0 | M24: 0 | N24: 0 | O24: 0 | P24: 0 | Q24: 0 | R24: 0 | S24: 0 | T24: 0 | U24: 0 | V24: 0 | W24: 0 | X24: 0 | Y24: 0 | Z24: 0 | AA24: 0 | AB24: 0 | AC24: 0 | AD24: 0 | AE24: 0 | AF24: 0 | AG24: 0 | AH24: 0 | AI24: 0 | AJ24: 0 | AK24: 0 | AL24: 0 | AM24: 0 | AN24: 0 | AO24: 0 | AP24: 0 | AQ24: 0 | AR24: 0 | AS24: 0
AW26: *The CDv value assumes an air density of 1.19 kg/m3.
B27: Holyoake Louvers have been tested and classified in accordance with: | AW27: **Louver door weight does not include the internal louver.
AW28: ***OHL-125 and OHCL-125 have been tested to AMCA 500-L-12.
B29: AS/NZS 4740:2000
B30: Natural Ventilators - Classification and Performance
B32: BS.EN 13030:2001
B33: Ventilation for Buildings. Terminal Performance testing of louvers subjected to simulated rain.
B35: AMCA 500-L-12
B36: Laboratory Methods of Testing Louvers for Rating

Sheet Data
A1: Type | B1: Minimum Width | C1: Minimum Height | D1: Maximum Width | E1: Maximum Height | F1: Wind Load | G1: Efficiency Class A | H1: Efficiency Class B | I1: Efficiency Class C | J1: Base Class | K1: Water Penetration | L1: Width Deduction | M1: Height Deduction | N1: Frame Spacing | O1: Top Frame Weight | P1: Bottom Frame Weight | Q1: Side Frame Weight | R1: Blade Weight | S1: Blade Spacing | T1: Slot Spacing | U1: Mullion Weight | V1: Mullion Spacing | W1: Mullion Width | X1: Mullion Clip Weight | Y1: Mesh Weight | Z1: Supplementary Weight | AA1: x^2 | AB1: x | AC1: +c | AD1: x^2 | AE1: x | AF1: +c | AG1: IL 125 | AH1: IL 250 | AI1: IL 500 | AJ1: IL 1k | AK1: IL 2k | AL1: IL 4k | AM1: IL 8k | AN1: TL 125 | AO1: TL 250 | AP1: TL 500 | AQ1: TL 1k | AR1: TL 2k | AS1: TL 4k | AT1: TL 8k
A2: OHL-D | B2: 300 | C2: 300 | F2: Level 1 | H2: 0.5 | I2: 7.5 | J2: Class B | K2: N/A | L2: 50 | M2: =L2+93 -> 143 | N2: 0 | O2: 0.001299 | P2: 0.001299 | Q2: =0.001299+0.000808+0.000328 -> 0.002435 | R2: 0.00067 | S2: 76.2 | T2: 47 | U2: 0.000726 | V2: 1000 | W2: 40 | X2: =0.001209*$X$33 -> 0.030225 | Y2: 0.53 | Z2: 0 | AA2: =1/0.9104977079 -> 1.098300404 | AB2: 0 | AC2: 0 | AD2: =1/0.7427843551 -> 1.34628576 | AE2: 0 | AF2: 0 | AG2: - | AH2: - | AI2: - | AJ2: - | AK2: - | AL2: - | AM2: - | AN2: - | AO2: - | AP2: - | AQ2: - | AR2: - | AS2: - | AT2: -
A3: OHL-102 | B3: 300 | C3: 300 | F3: Level 1 | I3: 6.5 | J3: Class C | K3: N/A | L3: 50 | M3: =L3+135 -> 185 | N3: 0 | O3: 0.001299 | P3: 0.001299 | Q3: 0.001299 | R3: 0.001172 | S3: 102 | T3: 57 | U3: 0.000726 | V3: 1000 | W3: 40 | X3: =0.001439*$X$33 -> 0.035975 | Y3: 0.53 | Z3: 0 | AA3: =1/0.9104977079 -> 1.098300404 | AB3: 0 | AC3: 0 | AD3: 1.34628576 | AE3: 0 | AF3: 0 | AG3: - | AH3: - | AI3: - | AJ3: - | AK3: - | AL3: - | AM3: - | AN3: - | AO3: - | AP3: - | AQ3: - | AR3: - | AS3: - | AT3: -
A4: OHL-124 | B4: 300 | C4: 300 | F4: Level 1 | H4: 0.5 | I4: 7.5 | J4: Class B | K4: N/A | L4: 50 | M4: =L4+87 -> 137 | N4: 0 | O4: 0.001299 | P4: 0.001299 | Q4: 0.001299 | R4: 0.00091 | S4: 76.2 | T4: 48 | U4: 0.000726 | V4: 1000 | W4: 40 | X4: =0.001209*$X$33 -> 0.030225 | Y4: 0.53 | Z4: 0 | AA4: =1/0.9104977079 -> 1.098300404 | AB4: 0 | AC4: 0 | AD4: 1.34628576 | AE4: 0 | AF4: 0 | AG4: - | AH4: - | AI4: - | AJ4: - | AK4: - | AL4: - | AM4: - | AN4: - | AO4: - | AP4: - | AQ4: - | AR4: - | AS4: - | AT4: -
A5: OHL-125 | B5: 300 | C5: 280 | D5: 5800 | E5: 5800 | F5: N/A | J5: 4.7m/s*** | K5: 4.7m/s | L5: 50 | M5: =L5+127 -> 177 | N5: 0 | O5: 0.001974 | P5: 0.001974 | Q5: 0.001974 | R5: 0.001365 | S5: 102 | T5: 64 | U5: 0.000726 | V5: 1000 | W5: 40 | X5: =0.001209*$X$33 -> 0.030225 | Y5: 1 | Z5: 0 | AA5: 1.8542 | AB5: 2.0801 | AC5: 0 | AD5: 1.5545 | AE5: 2.4314 | AF5: 0 | AG5: - | AH5: - | AI5: - | AJ5: - | AK5: - | AL5: - | AM5: - | AN5: - | AO5: - | AP5: - | AQ5: - | AR5: - | AS5: - | AT5: -
A6: OHL-100WT | B6: 300 | C6: 300 | F6: Level 1 | G6: 7.5 | J6: Class A | K6: N/A | L6: =M6+70 -> 120 | M6: 50 | N6: 0 | O6: =0.001299+0.00139 -> 0.002689 | P6: =0.001299+0.00139 -> 0.002689 | Q6: =0.001299+0.00139 -> 0.002689 | R6: 0.000799 | S6: 64 | T6: 27 | U6: 0.000726 | V6: 1000 | W6: 40 | X6: =0.000614*$X$33 -> 0.01535 | Y6: 0.53 | Z6: 0 | AA6: =1/0.9104977079 -> 1.098300404 | AB6: 0 | AC6: 0 | AD6: =1/0.7427843551 -> 1.34628576 | AE6: 0 | AF6: 0 | AG6: - | AH6: - | AI6: - | AJ6: - | AK6: - | AL6: - | AM6: - | AN6: - | AO6: - | AP6: - | AQ6: - | AR6: - | AS6: - | AT6: -
A7: OHL-KD100 | B7: 300 | C7: 300 | F7: Level 1 | H7: 0.5 | I7: 7 | J7: Class B | K7: N/A | L7: 50 | M7: =L7+133 -> 183 | N7: 0 | O7: 0.001299 | P7: 0.001299 | Q7: 0.001299 | R7: 0.001023 | S7: 102 | T7: 57 | U7: 0.000726 | V7: 1000 | W7: 40 | X7: =0.001439*$X$33 -> 0.035975 | Y7: 0.53 | Z7: 0 | AA7: =1/0.9104977079 -> 1.098300404 | AB7: 0 | AC7: 0 | AD7: =1/0.7427843551 -> 1.34628576 | AE7: 0 | AF7: 0 | AG7: - | AH7: - | AI7: - | AJ7: - | AK7: - | AL7: - | AM7: - | AN7: - | AO7: - | AP7: - | AQ7: - | AR7: - | AS7: - | AT7: -
A8: OHL-DR SINGLE | B8: 300 | C8: 300 | F8: N/A | J8: N/A | K8: N/A | L8: 89 | M8: 60 | N8: 190 | O8: 0.002356 | P8: 0.001826 | Q8: =0.001512+0.000792 -> 0.002304 | R8: 0 | S8: 0 | T8: 0 | U8: 0 | V8: 0 | W8: 0 | X8: 0 | Y8: 0 | Z8: 5.47 | AA8: 0 | AB8: 0 | AC8: 0 | AD8: 0 | AE8: 0 | AF8: 0 | AG8: - | AH8: - | AI8: - | AJ8: - | AK8: - | AL8: - | AM8: - | AN8: - | AO8: - | AP8: - | AQ8: - | AR8: - | AS8: - | AT8: -
A9: OHL-DR DOUBLE | B9: 300 | C9: 300 | F9: N/A | J9: N/A | K9: N/A | L9: 89 | M9: 60 | N9: 190 | O9: 0.002356 | P9: 0.001826 | Q9: =0.001512+0.000281 -> 0.001793 | R9: 0 | S9: 0 | T9: 0 | U9: 0 | V9: 0 | W9: 0 | X9: 0 | Y9: 0 | Z9: 10.49 | AA9: 0 | AB9: 0 | AC9: 0 | AD9: 0 | AE9: 0 | AF9: 0 | AG9: - | AH9: - | AI9: - | AJ9: - | AK9: - | AL9: - | AM9: - | AN9: - | AO9: - | AP9: - | AQ9: - | AR9: - | AS9: - | AT9: -
A10: OVL-99 | B10: 300 | C10: 300 | F10: Level 1 | H10: 0.5 | I10: 5 | J10: Class B | K10: N/A | L10: =M10+70 -> 120 | M10: 50 | N10: 0 | O10: 0.001299 | P10: 0.001299 | Q10: 0.001299 | R10: 0.000799 | S10: 64 | T10: 27 | U10: 0.000726 | V10: 1000 | W10: 40 | X10: =0.000614*$X$33 -> 0.01535 | Y10: 0.53 | Z10: 0 | AA10: =1/0.9104977079 -> 1.098300404 | AB10: 0 | AC10: 0 | AD10: =1/0.7427843551 -> 1.34628576 | AE10: 0 | AF10: 0 | AG10: - | AH10: - | AI10: - | AJ10: - | AK10: - | AL10: - | AM10: - | AN10: - | AO10: - | AP10: - | AQ10: - | AR10: - | AS10: - | AT10: -
A11: OHL-34 | B11: 200 | C11: 200 | F11: Level 1 | H11: 5.5 | I11: 7.5 | J11: Class B | K11: N/A | L11: 20 | M11: =L11+57 -> 77 | N11: 0 | O11: 0.000294 | P11: 0.000294 | Q11: 0.000294 | R11: 0.000356 | S11: 38 | T11: 10 | U11: 0.000328 | V11: 600 | W11: 40 | X11: 0 | Y11: 0.53 | Z11: 0 | AA11: =1/0.9104977079 -> 1.098300404 | AB11: 0 | AC11: 0 | AD11: 1.34628576 | AE11: 0 | AF11: 0 | AG11: - | AH11: - | AI11: - | AJ11: - | AK11: - | AL11: - | AM11: - | AN11: - | AO11: - | AP11: - | AQ11: - | AR11: - | AS11: - | AT11: -
A12: OHL-45 | B12: 200 | C12: 200 | F12: Level 1 | I12: 7.5 | J12: Class C | K12: N/A | L12: 20 | M12: =L12+62 -> 82 | N12: 0 | O12: 0.000369 | P12: 0.000369 | Q12: 0.000369 | R12: 0.000424 | S12: 50 | T12: 25 | U12: 0.000328 | V12: 600 | W12: 40 | X12: =0.000399*$X$33 -> 0.009975 | Y12: 0.53 | Z12: 0 | AA12: =1/0.9104977079 -> 1.098300404 | AB12: 0 | AC12: 0 | AD12: 1.34628576 | AE12: 0 | AF12: 0 | AG12: - | AH12: - | AI12: - | AJ12: - | AK12: - | AL12: - | AM12: - | AN12: - | AO12: - | AP12: - | AQ12: - | AR12: - | AS12: - | AT12: -
A13: OHL-LAOGS | F13: N/A | J13: N/A | K13: N/A | L13: 4 | M13: =L13+43 -> 47 | N13: 0 | O13: 0.001021 | P13: 0.001021 | Q13: 0.001021 | R13: 0.000262 | S13: 37 | T13: 16 | U13: 0.000328 | V13: 600 | W13: 40 | X13: 0 | Y13: 0.53 | Z13: 0 | AA13: =1/0.9104977079 -> 1.098300404 | AB13: 0 | AC13: 0 | AD13: 1.34628576 | AE13: 0 | AF13: 0 | AG13: - | AH13: - | AI13: - | AJ13: - | AK13: - | AL13: - | AM13: - | AN13: - | AO13: - | AP13: - | AQ13: - | AR13: - | AS13: - | AT13: -
A14: OHL-DRC | B14: 300 | C14: 300 | F14: Level 1 | H14: 7 | I14: 7.5 | J14: Class B | K14: N/A | L14: 57 | M14: 79 | N14: 0 | O14: =0.001428+0.000792 -> 0.00222 | P14: =0.001423+0.000792 -> 0.002215 | Q14: =0.001793+0.000284+0.000792 -> 0.002869 | R14: 0.00128 | S14: 102 | T14: 58 | U14: 0 | V14: 0 | W14: 0 | X14: 0 | Y14: 2.48 | Z14: 1.1 | AA14: =1/0.9104977079 -> 1.098300404 | AB14: 0 | AC14: 0 | AD14: 1.34628576 | AE14: 0 | AF14: 0 | AG14: - | AH14: - | AI14: - | AJ14: - | AK14: - | AL14: - | AM14: - | AN14: - | AO14: - | AP14: - | AQ14: - | AR14: - | AS14: - | AT14: -
A15: OHCL-125 | B15: 300 | C15: 280 | F15: N/A | J15: 4.7m/s*** | K15: 4.7m/s | L15: 50 | M15: =L15+127 -> 177 | N15: 0 | O15: 0.001974 | P15: 0.001974 | Q15: 0.001974 | R15: =0.001365+0.000445 -> 0.00181 | S15: 102 | T15: 62 | U15: 0.000726 | V15: 1000 | W15: 40 | X15: =0.001209*$X$33 -> 0.030225 | Y15: 1 | Z15: 2.2 | AA15: 1.8542 | AB15: 2.0801 | AC15: 0 | AD15: 1.5545 | AE15: 2.4314 | AF15: 0 | AG15: - | AH15: - | AI15: - | AJ15: - | AK15: - | AL15: - | AM15: - | AN15: - | AO15: - | AP15: - | AQ15: - | AR15: - | AS15: - | AT15: -
A16: AHL-150 | B16: 120 | C16: 370 | D16: 3000 | E16: 3000 | F16: N/A | J16: N/A | K16: N/A | L16: 70 | M16: =L16+219 -> 289 | N16: 0 | O16: =0.001428+0.00068+0.00017+0.000792 -> 0.00307 | P16: =0.001428+0.00068+0.00017+0.000792 -> 0.00307 | Q16: 0.00307 | R16: =0.002984+0.000397+0.00049 -> 0.003871 | S16: 152 | T16: 50 | U16: 0 | V16: 0 | W16: 0 | X16: 0 | Y16: 0 | Z16: 0 | AA16: 0.5753 | AB16: 0.002 | AC16: 0.0358 | AD16: 0.5753 | AE16: 0.002 | AF16: 0.0358 | AG16: 0.9 | AH16: 0.4 | AI16: 1.2 | AJ16: 2.3 | AK16: 4.4 | AL16: 2.2 | AM16: 1.9 | AN16: 11.6 | AO16: 11.6 | AP16: 13.1 | AQ16: 15.3 | AR16: 19.8 | AS16: 12.9 | AT16: 12
A17: AHL-300 | B17: 120 | C17: 370 | D17: 3000 | E17: 3000 | F17: N/A | J17: N/A | K17: N/A | L17: 70 | M17: =L17+219 -> 289 | N17: 0 | O17: =O16+O20 -> 0.004498 | P17: =P16+P20 -> 0.004498 | Q17: =Q16+Q20 -> 0.004498 | R17: =R16+R20 -> 0.006759 | S17: 152 | T17: 50 | U17: 0 | V17: 0 | W17: 0 | X17: 0 | Y17: 0 | Z17: 0 | AA17: 0.5753 | AB17: 0.002 | AC17: 0.0358 | AD17: 0.5753 | AE17: 0.002 | AF17: 0.0358 | AG17: 1.5 | AH17: 2.4 | AI17: 5.1 | AJ17: 7.6 | AK17: 11.2 | AL17: 9.6 | AM17: 9.6 | AN17: 12.3 | AO17: 13.6 | AP17: 16.9 | AQ17: 20.4 | AR17: 26.5 | AS17: 20.4 | AT17: 19.7
A18: AHL-450 | B18: 120 | C18: 370 | D18: 3000 | E18: 3000 | F18: N/A | J18: N/A | K18: N/A | L18: 70 | M18: 289 | N18: 0 | O18: =O17+O20 -> 0.005926 | P18: =P17+P20 -> 0.005926 | Q18: =Q17+Q20 -> 0.005926 | R18: =R17+R20 -> 0.009647 | S18: 152 | T18: 50 | U18: 0 | V18: 0 | W18: 0 | X18: 0 | Y18: 0 | Z18: 0 | AA18: 0.5753 | AB18: 0.002 | AC18: 0.0358 | AD18: 0.5753 | AE18: 0.002 | AF18: 0.0358 | AG18: 3.7 | AH18: 6.2 | AI18: 8.3 | AJ18: 12.1 | AK18: 16.4 | AL18: 15.5 | AM18: 15.7 | AN18: 10.5 | AO18: 12.7 | AP18: 16.5 | AQ18: 21.4 | AR18: 30.8 | AS18: 28.6 | AT18: 29.4
A19: AHL-600 | B19: 120 | C19: 370 | D19: 3000 | E19: 3000 | F19: N/A | J19: N/A | K19: N/A | L19: 70 | M19: 289 | N19: 0 | O19: =O18+O20 -> 0.007354 | P19: =P18+P20 -> 0.007354 | Q19: =Q18+Q20 -> 0.007354 | R19: =R18+R20 -> 0.012535 | S19: 152 | T19: 50 | U19: 0 | V19: 0 | W19: 0 | X19: 0 | Y19: 0 | Z19: 0 | AA19: 0.5753 | AB19: 0.002 | AC19: 0.0358 | AD19: 0.5753 | AE19: 0.002 | AF19: 0.0358 | AG19: 5.9 | AH19: 7.9 | AI19: 11.1 | AJ19: 16.1 | AK19: 22 | AL19: 20.8 | AM19: 21.4 | AN19: 12.8 | AO19: 14.5 | AP19: 19.3 | AQ19: 25.4 | AR19: 36.4 | AS19: 33.9 | AT19: 35.1
A20: ST-150 | B20: 120 | C20: 220 | D20: 3000 | E20: 3000 | F20: N/A | J20: N/A | K20: N/A | L20: 70 | M20: =L20+80 -> 150 | N20: 0 | O20: 0.001428 | P20: 0.001428 | Q20: 0.001428 | R20: =0.002348+0.00054 -> 0.002888 | S20: 152 | T20: 72 | U20: 0 | V20: 0 | W20: 0 | X20: 0 | Y20: 0 | Z20: 0 | AA20: 0 | AB20: 0 | AC20: 0 | AD20: 0 | AE20: 0 | AF20: 0 | AG20: 1 | AH20: 1.1 | AI20: 0 | AJ20: 0 | AK20: 0 | AL20: 0 | AM20: 0 | AN20: 7.8 | AO20: 8.4 | AP20: 8.5 | AQ20: 8.4 | AR20: 10.6 | AS20: 10.2 | AT20: 10.3
A21: ST-300 | B21: 120 | C21: 220 | D21: 3000 | E21: 3000 | F21: N/A | J21: N/A | K21: N/A | L21: 70 | M21: =L21+80 -> 150 | N21: 0 | O21: =O20*2 -> 0.002856 | P21: =P20*2 -> 0.002856 | Q21: =Q20*2 -> 0.002856 | R21: =R20*2 -> 0.005776 | S21: 152 | T21: 72 | U21: 0 | V21: 0 | W21: 0 | X21: 0 | Y21: 0 | Z21: 0 | AA21: 0 | AB21: 0 | AC21: 0 | AD21: 0 | AE21: 0 | AF21: 0 | AG21: 0.7 | AH21: 1.7 | AI21: 2 | AJ21: 1.5 | AK21: 0.6 | AL21: 5 | AM21: 4.3 | AN21: 7.6 | AO21: 8.9 | AP21: 10.6 | AQ21: 12 | AR21: 16.2 | AS21: 17.6 | AT21: 17.1
A22: ST-450 | B22: 120 | C22: 220 | D22: 3000 | E22: 3000 | F22: N/A | J22: N/A | K22: N/A | L22: 70 | M22: 150 | N22: 0 | O22: =O20*3 -> 0.004284 | P22: =P20*3 -> 0.004284 | Q22: =Q20*3 -> 0.004284 | R22: =R20*3 -> 0.008664 | S22: 152 | T22: 72 | U22: 0 | V22: 0 | W22: 0 | X22: 0 | Y22: 0 | Z22: 0 | AA22: 0 | AB22: 0 | AC22: 0 | AD22: 0 | AE22: 0 | AF22: 0 | AG22: 4.2 | AH22: 10.9 | AI22: 9.8 | AJ22: 9.5 | AK22: 10.5 | AL22: 12.4 | AM22: 12.1 | AN22: 11.4 | AO22: 17.9 | AP22: 18.4 | AQ22: 19.8 | AR22: 25.7 | AS22: 25 | AT22: 24.9
A24: OHL-ST2 | L24: 0 | M24: 0 | O24: 0 | P24: 0 | Q24: 0 | T24: N/A | AG24: 1 | AH24: 3 | AI24: 5 | AJ24: 6 | AK24: 13 | AL24: 8 | AM24: 11 | AN24: - | AO24: - | AP24: - | AQ24: - | AR24: - | AS24: - | AT24: -
A25: OHL-ST4 | L25: 0 | M25: 0 | O25: 0 | P25: 0 | Q25: 0 | T25: N/A | AG25: 1 | AH25: 6 | AI25: 9 | AJ25: 12 | AK25: 19 | AL25: 18 | AM25: 15 | AN25: - | AO25: - | AP25: - | AQ25: - | AR25: - | AS25: - | AT25: -
A26: OVL-148
A27: OHCL-102 | B27: 300 | C27: 300 | F27: Level 1 | I27: 6.5 | J27: Class C | K27: N/A | L27: 57 | M27: 193 | N27: N/A | O27: 0.001739 | P27: N/A | Q27: N/A | R27: =0.001172+0.000544 -> 0.001716 | S27: 102 | T27: 51 | V27: 900 | W27: 25 | AA27: =1/0.9104977079 -> 1.098300404 | AB27: 0 | AC27: 0 | AD27: =1/0.7427843551 -> 1.34628576 | AE27: 0 | AF27: 0 | AG27: - | AH27: - | AI27: - | AJ27: - | AK27: - | AL27: - | AM27: - | AN27: - | AO27: - | AP27: - | AQ27: - | AR27: - | AS27: - | AT27: -
A28: OHCL-124 | B28: 300 | C28: 300 | F28: Level 1 | H28: 0.5 | I28: 7.5 | J28: Class B | K28: N/A | L28: 60 | M28: 160 | N28: N/A | O28: 0.001739 | P28: N/A | Q28: N/A | R28: =0.00091+0.000435 -> 0.001345 | S28: 76.2 | T28: 37 | V28: 900 | W28: 40 | AA28: 1.098300404 | AB28: 0 | AC28: 0 | AD28: 1.34628576 | AE28: 0 | AF28: 0 | AG28: - | AH28: - | AI28: - | AJ28: - | AK28: - | AL28: - | AM28: - | AN28: - | AO28: - | AP28: - | AQ28: - | AR28: - | AS28: - | AT28: -
A29: Insect Mesh | O29: 3.4e-07
A30: 1 | B30: 2 | C30: 3 | D30: 4 | E30: 5 | F30: 6 | G30: 7 | H30: 8 | I30: 9 | J30: 10 | K30: 11 | L30: 12 | M30: 13 | N30: 14 | O30: 15 | P30: 16 | Q30: 17 | R30: 18 | S30: 19 | T30: 20 | U30: 21 | V30: 22 | W30: 23 | X30: 24 | Y30: 25 | Z30: 26 | AA30: 27 | AB30: 28 | AC30: 29 | AD30: 30 | AE30: 31 | AF30: 32 | AG30: 33 | AH30: 34 | AI30: 35 | AJ30: 36 | AK30: 37 | AL30: 38 | AM30: 39 | AN30: 40 | AO30: 41 | AP30: 42 | AQ30: 43 | AR30: 44 | AS30: 45 | AT30: 46
L31: OHL-DR has a different construction to the louvre range, the calculation data is therefore slightly different
A33: Nominal Size | L33: 6 | M33: 6 | X33: 25 | AA33: Exhaust | AD33: Intake
AR50: mullion weight
AQ53: 102 | AR53: 900
AQ54: 124 | AR54: 900
AQ55: dra | AR55: 900
AQ56: 45
AQ57: rlw
